bitfinex/quotes_BTCUSD_20220120
["timestamp","ask_amount","ask_price","bid_price","bid_amount"]
[1642645217285,0.06,41872.0,41871.0,2.11251211]
[1642645217886,0.06,41872.0,41871.0,2.01251211]
[1642645218184,0.06,41872.0,41871.0,2.02251211]
[1642645219329,0.06,41872.0,41871.0,2.01251211]
[1642645220134,0.06,41872.0,41871.0,2.02451211]
[1642645221335,0.06,41872.0,41871.0,2.01251211]
[1642645221533,0.06,41872.0,41871.0,2.11251211]
[1642645222134,0.06,41872.0,41871.0,2.12451211]
[1642645222780,0.06,41872.0,41871.0,3.39651211]
[1642645223380,0.06,41872.0,41871.0,3.44644211]
[1642645223981,0.06,41872.0,41871.0,3.45844211]
[1642645224180,0.05992625,41872.0,41871.0,3.45844211]
[1642645225379,0.05992625,41872.0,41871.0,3.44644211]
[1642645225591,0.05992625,41872.0,41871.0,4.05340685]
[1642645225784,8.99e-06,41872.0,41871.0,5.17125072]
[1642645225985,0.599,41883.0,41874.0,1.0]
[1642645226181,0.599,41883.0,41879.0,0.60957853]
[1642645226434,0.599,41883.0,41880.0,0.38700514]
[1642645226435,0.00012033,41881.0,41880.0,0.38700514]
[1642645226638,0.00012033,41881.0,41880.0,0.90038056]
[1642645226834,0.00012033,41881.0,41880.0,1.51231056]
[1642645227334,0.00012033,41881.0,41880.0,1.69135756]
[1642645227634,0.00012033,41881.0,41880.0,1.09135756]
[1642645227835,0.00012033,41881.0,41880.0,1.34135756]
[1642645228035,0.00012033,41881.0,41880.0,1.35535756]
[1642645228339,0.00012033,41881.0,41880.0,1.39713395]
[1642645228733,0.00012033,41881.0,41880.0,2.66913395]
[1642645229333,0.00012033,41881.0,41880.0,2.65513395]
[1642645230192,0.00012033,41881.0,41880.0,2.67013395]
[1642645230385,0.00012033,41881.0,41880.0,2.42013395]
[1642645231285,0.00012033,41881.0,41880.0,2.36335756]
[1642645232085,0.00012033,41881.0,41880.0,2.37835756]
[1642645233289,0.00012033,41881.0,41880.0,2.36335756]
[1642645234139,0.00012033,41881.0,41880.0,2.38335756]
[1642645234539,0.00012033,41881.0,41880.0,0.79809933]
[1642645234743,0.00012033,41881.0,41880.0,0.61905233]
[1642645235340,0.00012033,41881.0,41880.0,0.59905233]
[1642645235740,0.06012033,41881.0,41880.0,0.84905233]
[1642645236143,0.06012033,41881.0,41880.0,0.86705233]
[1642645236543,0.06012033,41881.0,41880.0,0.48132333]
[1642645236741,0.00012033,41881.0,41880.0,0.68132333]
[1642645236941,0.00012033,41881.0,41880.0,1.95332333]
[1642645237141,0.00012033,41881.0,41880.0,2.33905233]
[1642645237341,0.00012033,41881.0,41880.0,0.79905233]
[1642645237790,0.00012033,41881.0,41880.0,0.84905233]
[1642645237991,0.00012033,41881.0,41880.0,0.86405233]
[1642645238191,0.00012033,41881.0,41880.0,0.61405233]
[1642645239392,0.00012033,41881.0,41880.0,0.48712233]
[1642645239793,0.00012033,41881.0,41880.0,0.49905233]
[1642645239994,0.00012033,41881.0,41880.0,1.88405233]
[1642645240394,0.00012033,41881.0,41880.0,1.92582646]
[1642645240595,0.00012033,41881.0,41880.0,2.27582646]
[1642645240995,0.00012033,41881.0,41880.0,2.39518746]
[1642645241439,0.00012033,41881.0,41880.0,2.03218746]
[1642645241837,0.00012033,41881.0,41880.0,1.99041333]
[1642645242037,0.00012033,41881.0,41880.0,2.00741333]
[1642645243437,0.00012033,41881.0,41880.0,1.99041333]
[1642645244039,0.00012033,41881.0,41880.0,2.00841333]
[1642645244437,0.00012033,41881.0,41880.0,2.00845306]
[1642645245384,0.00012033,41881.0,41880.0,1.99045306]
[1642645245585,0.00012033,41881.0,41880.0,1.89045306]
[1642645246084,0.00012033,41881.0,41880.0,1.91045306]
[1642645247284,0.00012033,41881.0,41880.0,1.89045306]
[1642645248187,0.00012033,41881.0,41880.0,1.91045306]
[1642645249238,0.00012033,41881.0,41880.0,1.89045306]
[1642645250238,0.00012033,41881.0,41880.0,1.91045306]
[1642645250435,4.595e-05,41881.0,41880.0,1.91045306]
[1642645251235,4.595e-05,41881.0,41880.0,1.89045306]
[1642645252136,4.595e-05,41881.0,41880.0,1.91045306]
[1642645253405,4.595e-05,41881.0,41880.0,1.96045306]
[1642645254014,4.595e-05,41881.0,41880.0,1.94045306]
[1642645254210,4.595e-05,41881.0,41880.0,1.96045306]
[1642645255307,4.595e-05,41881.0,41880.0,1.94045306]
[1642645255710,4.595e-05,41881.0,41880.0,1.99045306]
[1642645255910,4.595e-05,41881.0,41880.0,1.89045306]
[1642645256111,4.595e-05,41881.0,41880.0,1.96045306]
[1642645256441,4.595e-05,41881.0,41880.0,0.68845306]
[1642645257438,4.595e-05,41881.0,41880.0,0.66845306]
[1642645257839,4.595e-05,41881.0,41880.0,0.66717692]
[1642645258039,4.595e-05,41881.0,41880.0,0.68617692]
[1642645259041,4.595e-05,41881.0,41880.0,0.63617692]
[1642645259242,4.595e-05,41881.0,41880.0,0.62424692]
[1642645259442,4.595e-05,41881.0,41880.0,0.60524692]
[1642645260042,4.595e-05,41881.0,41880.0,0.52724692]
[1642645260290,4.595e-05,41881.0,41880.0,0.40788592]
[1642645260482,4.595e-05,41881.0,41880.0,0.02215692]
[1642645262086,4.595e-05,41881.0,41880.0,0.02115692]
[1642645263388,4.595e-05,41881.0,41880.0,0.00015692]
[1642645264233,4.595e-05,41881.0,41880.0,0.02215692]
[1642645265436,4.595e-05,41881.0,41880.0,0.00015692]
[1642645266236,4.595e-05,41881.0,41880.0,0.02215692]
[1642645267438,4.595e-05,41881.0,41880.0,0.00015692]
[1642645268093,4.595e-05,41881.0,41880.0,0.02215692]
[1642645269292,4.595e-05,41881.0,41880.0,0.00015692]
[1642645270196,4.595e-05,41881.0,41880.0,0.02215692]
[1642645271436,4.595e-05,41881.0,41880.0,0.00015692]
[1642645272236,4.595e-05,41881.0,41880.0,0.02215692]
[1642645273239,0.0479,41882.0,41880.0,0.02215692]
[1642645273440,0.48549369,41881.0,41880.0,0.00015692]
[1642645274239,0.49349369,41881.0,41880.0,0.02415692]
[1642645274838,0.82130042,41881.0,41880.0,0.02415692]
[1642645275490,0.81330042,41881.0,41880.0,0.00015692]
[1642645276291,0.88330042,41881.0,41880.0,0.00015692]
[1642645277088,0.93120042,41881.0,41880.0,0.00015692]
[1642645277688,0.86120042,41881.0,41880.0,0.00015692]
[1642645278388,0.86120042,41881.0,41880.0,0.00215692]
[1642645278389,0.88820042,41881.0,41880.0,0.00215692]
[1642645278588,1.26811194,41881.0,41880.0,0.00215692]
[1642645279444,0.86120042,41881.0,41880.0,0.00015692]
[1642645280246,0.91520042,41881.0,41880.0,0.00015692]
[1642645281446,0.86120042,41881.0,41880.0,0.00015692]
[1642645282246,0.91720042,41881.0,41880.0,0.00015692]
[1642645284087,1.31437778,41881.0,41880.0,0.00015692]
[1642645284286,1.37037778,41881.0,41880.0,0.00015692]
[1642645284491,1.02037778,41881.0,41880.0,0.00015692]
[1642645285487,0.96437778,41881.0,41880.0,0.00015692]
[1642645286088,0.95758769,41881.0,41880.0,0.00015692]
[1642645286288,0.97858769,41881.0,41880.0,0.00015692]
[1642645287641,0.95758769,41881.0,41880.0,0.00015692]
[1642645287837,1.00758769,41881.0,41880.0,0.00015692]
[1642645288037,1.30758769,41881.0,41880.0,0.00015692]
[1642645288237,1.31858769,41881.0,41880.0,0.00015692]
[1642645289537,1.30758769,41881.0,41880.0,0.00015692]
[1642645290191,1.31858769,41881.0,41880.0,0.00015692]
[1642645291397,1.30758769,41881.0,41880.0,0.00015692]
[1642645292296,1.31858769,41881.0,41880.0,0.00015692]
[1642645293502,1.30258769,41881.0,41880.0,0.00015692]
[1642645293701,0.06017776,41879.0,41873.0,6e-05]
[1642645293937,0.96942406,41876.0,41873.0,6e-05]
[1642645294141,1.25708418,41875.0,41874.0,0.00012033]
[1642645294737,1.31679418,41875.0,41874.0,0.00012033]
[1642645294937,1.31679418,41875.0,41867.0,0.04910145]
[1642645295138,0.21072802,41868.0,41867.0,0.04910145]
[1642645295439,1.2275792,41868.0,41867.0,0.04910145]
[1642645296040,1.2275792,41868.0,41867.0,0.06103145]
[1642645296239,1.03985118,41868.0,41867.0,0.05410145]
[1642645296438,1.03985118,41868.0,41867.0,0.005]
[1642645297441,1.01685118,41868.0,41865.0,0.52]
[1642645297690,1.20655716,41867.0,41865.0,0.42]
[1642645297892,0.18970598,41867.0,41866.0,0.00013752]
[1642645298291,0.20670598,41867.0,41866.0,0.00013752]
[1642645298897,0.20670598,41867.0,41866.0,0.38586652]
[1642645299093,0.20670598,41867.0,41866.0,0.98586652]
[1642645299293,0.20670598,41867.0,41866.0,1.09779652]
[1642645299493,0.18970598,41867.0,41866.0,2.11458728]
[1642645299693,0.18970598,41867.0,41866.0,2.82561185]
[1642645300093,0.18970598,41867.0,41866.0,2.22561185]
[1642645300094,0.1761265,41867.0,41866.0,2.22561185]
[1642645300296,0.1951265,41867.0,41866.0,2.23261185]
[1642645300494,0.019,41867.0,41866.0,2.23261185]
[1642645301548,0.18312304,41873.0,41868.0,0.059706]
[1642645301748,0.18312304,41873.0,41869.0,0.385729]
[1642645301949,0.059706,41872.0,41869.0,0.38581495]
[1642645302148,0.059706,41872.0,41870.0,6.876e-05]
[1642645302348,0.08070611,41873.0,41871.0,0.385729]
[1642645302548,0.08070611,41873.0,41870.0,6.876e-05]
[1642645302747,0.08070611,41873.0,41871.0,0.385729]
[1642645303551,0.05970611,41873.0,41871.0,0.385729]
[1642645304350,0.07970611,41873.0,41871.0,0.389729]
[1642645305194,0.02,41873.0,41872.0,0.409699]
[1642645305594,0.06082043,41874.0,41872.0,0.409699]
[1642645305994,0.06082043,41874.0,41872.0,0.059699]
[1642645305995,0.05969922,41874.0,41872.0,0.059699]
[1642645306194,0.07569922,41874.0,41872.0,0.065699]
[1642645307596,0.05969922,41874.0,41872.0,0.059699]
[1642645308496,0.07469922,41874.0,41872.0,0.064699]
[1642645308943,0.07469922,41874.0,41872.0,0.005]
[1642645309742,0.05969922,41874.0,41870.0,6.876e-05]
[1642645309947,0.11940522,41874.0,41870.0,6.876e-05]
[1642645310143,0.11941041,41874.0,41869.0,8.595e-05]
[1642645310344,0.08470441,41874.0,41870.0,0.005]
[1642645311044,0.08582562,41874.0,41870.0,0.005]
[1642645311345,0.059705,41872.0,41870.0,0.005]
[1642645311543,0.11941028,41872.0,41871.0,0.385729]
[1642645312045,0.11941028,41872.0,41871.0,0.485729]
[1642645312244,0.082705,41872.0,41871.0,0.492729]
[1642645312445,0.082705,41872.0,41871.0,0.107]
[1642645312729,0.082705,41872.0,41871.0,0.007]
[1642645313512,0.31876107,41870.0,41869.0,8.595e-05]
[1642645313713,0.31876107,41870.0,41869.0,0.38581495]
[1642645314314,0.33376107,41870.0,41869.0,0.39281495]
[1642645314516,0.33376107,41870.0,41869.0,0.00708595]
[1642645315512,0.31876107,41870.0,41869.0,8.595e-05]
[1642645315912,0.37847334,41870.0,41868.0,0.00010314]
[1642645316114,0.20745036,41869.0,41868.0,0.00010314]
[1642645316549,0.49882241,41869.0,41868.0,0.00010314]
[1642645317053,0.49882241,41869.0,41867.0,0.00012033]
[1642645317250,0.29637553,41868.0,41867.0,0.00012033]
[1642645317651,0.34427553,41868.0,41867.0,0.00012033]
[1642645318253,0.43399753,41868.0,41867.0,0.00712033]
[1642645318456,0.43399753,41868.0,41867.0,0.007]
[1642645318652,0.137622,41868.0,41867.0,0.00712033]
[1642645318855,0.537622,41868.0,41867.0,0.00712033]
[1642645319454,0.137622,41868.0,41867.0,0.00012033]
[1642645319658,0.107622,41868.0,41867.0,0.00012033]
[1642645320396,0.21454178,41868.0,41867.0,0.00012033]
[1642645320804,0.119444,41867.0,41865.0,0.00121408]
[1642645320994,0.0479,41866.0,41865.0,0.00121408]
[1642645321396,0.0479,41866.0,41865.0,0.00136879]
[1642645321598,0.0479,41866.0,41865.0,0.00015471]
[1642645322097,0.10761815,41866.0,41864.0,0.0001719]
[1642645322297,0.12061815,41866.0,41864.0,0.0001719]
[1642645322496,0.29431077,41865.0,41864.0,0.0001719]
[1642645327996,0.11944115,41866.0,41864.0,0.0001719]
[1642645327997,0.05971815,41866.0,41864.0,0.0001719]
[1642645332246,0.16944115,41866.0,41864.0,0.0001719]
[1642645333245,0.10971815,41866.0,41864.0,0.0001719]
[1642645335801,0.05971815,41866.0,41864.0,0.0001719]
[1642645337901,0.05971815,41866.0,41865.0,0.385729]
[1642645338102,0.05964479,41866.0,41865.0,0.385729]
[1642645338303,0.32183412,41873.0,41865.0,0.48588371]
[1642645338501,0.33884786,41886.0,41867.0,0.60944614]
[1642645338502,0.3048,41876.0,41867.0,0.60944614]
[1642645338701,0.00112095,41874.0,41869.0,0.059704]
[1642645339145,0.00112095,41874.0,41870.0,0.31326977]
[1642645339545,0.059704,41874.0,41870.0,0.31326977]
[1642645339745,0.059704,41874.0,41870.0,6.876e-05]
[1642645339746,0.06082521,41874.0,41870.0,6.876e-05]
[1642645340148,0.00112121,41874.0,41870.0,0.059704]
[1642645340351,0.02212121,41874.0,41871.0,0.69290747]
[1642645340549,0.02212121,41874.0,41871.0,0.79290747]
[1642645340748,0.021,41874.0,41871.0,0.40717847]
[1642645341148,0.080703,41874.0,41871.0,0.67789983]
[1642645341547,0.059703,41874.0,41871.0,0.67789983]
[1642645341753,0.12053522,41875.0,41873.0,0.00124003]
[1642645341754,0.00112122,41875.0,41873.0,0.00124003]
[1642645341948,0.02047076,41879.0,41874.0,1.035729]
[1642645342148,0.02047076,41879.0,41874.0,1.135729]
[1642645342149,0.00112122,41875.0,41874.0,1.135729]
[1642645342350,0.02312122,41875.0,41874.0,1.135729]
[1642645342550,0.02312122,41875.0,41874.0,3.22543808]
[1642645342798,6.876e-05,41878.0,41877.0,0.00129069]
[1642645343006,0.599,41883.0,41878.0,1.0]
[1642645343198,0.599,41883.0,41882.0,1.13698121]
[1642645343399,0.599,41883.0,41882.0,1.14891121]
[1642645343597,0.599,41883.0,41882.0,1.24891121]
[1642645343798,0.599,41883.0,41882.0,0.49891121]
[1642645344099,0.599,41883.0,41882.0,0.55858521]
[1642645345197,0.599,41883.0,41882.0,0.87023736]
[1642645346448,0.599,41883.0,41882.0,2.14223736]
[1642645348749,0.599,41883.0,41882.0,2.19223736]
[1642645350695,0.599,41883.0,41882.0,2.24223736]
[1642645351293,0.599,41883.0,41882.0,0.87023736]
[1642645351494,0.599,41883.0,41882.0,0.557333]
[1642645351693,0.599,41883.0,41882.0,0.171604]
[1642645352094,0.599,41883.0,41882.0,0.071604]
[1642645352292,0.599,41883.0,41882.0,0.01193]
[1642645358401,0.599,41883.0,41882.0,0.61193]
[1642645358606,0.599,41883.0,41882.0,1.06211511]
[1642645360503,0.599,41883.0,41882.0,1.44784411]
[1642645363048,0.599,41883.0,41882.0,1.39784411]
[1642645363447,0.599,41883.0,41882.0,1.44784411]
[1642645363651,0.5989333,41883.0,41882.0,1.49784411]
[1642645364247,0.5989333,41883.0,41882.0,0.89784411]
[1642645369953,0.00111061,41885.0,41883.0,2.02746226]
[1642645370152,0.00111061,41885.0,41884.0,2.04270675]
[1642645370351,0.00111061,41885.0,41884.0,1.82155707]
[1642645370550,0.00111061,41885.0,41884.0,1.97155707]
[1642645370749,0.02,41889.0,41884.0,1.97155707]
[1642645370951,0.00111063,41887.0,41884.0,2.47353241]
[1642645371150,0.00111063,41887.0,41886.0,0.66193]
[1642645371352,0.00111063,41887.0,41886.0,1.166996]
[1642645371559,0.00126534,41887.0,41886.0,1.266996]
[1642645371952,0.00126534,41887.0,41886.0,0.616996]
[1642645371953,0.00015471,41887.0,41886.0,0.616996]
[1642645372152,0.00015471,41887.0,41886.0,0.93909816]
[1642645374505,0.00015471,41887.0,41886.0,0.98009816]
[1642645375705,0.00015471,41887.0,41886.0,0.93909816]
[1642645375906,0.00015471,41887.0,41886.0,0.98909816]
[1642645376447,0.00015471,41887.0,41886.0,1.07409816]
[1642645377747,0.00015471,41887.0,41886.0,0.98909816]
[1642645378548,0.00015471,41887.0,41886.0,1.02209816]
[1642645379749,0.00015471,41887.0,41886.0,0.98909816]
[1642645380408,0.02,41889.0,41887.0,0.80030941]
[1642645380606,0.02,41889.0,41888.0,1.04211125]
[1642645380607,0.02111066,41889.0,41888.0,1.04211125]
[1642645381006,0.02111066,41889.0,41888.0,1.19211125]
[1642645381206,0.02111066,41889.0,41888.0,2.52377925]
[1642645381408,0.02111066,41889.0,41888.0,2.53570925]
[1642645381707,0.02,41889.0,41888.0,2.53570925]
[1642645382607,0.02,41889.0,41888.0,2.55670925]
[1642645383809,0.02,41889.0,41888.0,3.40225872]
[1642645384458,0.02,41889.0,41888.0,3.41925872]
[1642645384658,0.12,41899.0,41894.0,0.059658]
[1642645384859,0.12,41899.0,41898.0,0.00127]
[1642645385058,0.12,41899.0,41898.0,0.386999]
[1642645385258,0.12,41899.0,41898.0,0.00127]
[1642645385459,0.12,41899.0,41898.0,0.10127]
[1642645385658,0.12,41899.0,41898.0,0.48824113]
[1642645385858,0.12,41899.0,41898.0,0.78119747]
[1642645386057,0.12,41899.0,41898.0,0.48824113]
[1642645386258,0.12,41899.0,41898.0,0.85368579]
[1642645386458,0.12,41899.0,41898.0,0.85875579]
[1642645386658,0.12,41899.0,41898.0,0.90875579]
[1642645386860,0.12,41899.0,41898.0,1.29448479]
[1642645387697,0.12,41899.0,41898.0,1.23941479]
[1642645387904,0.12,41899.0,41898.0,1.28941479]
[1642645388102,0.12,41899.0,41898.0,2.56141479]
[1642645388503,0.12,41899.0,41898.0,2.57941479]
[1642645388901,0.12,41899.0,41898.0,3.33834979]
[1642645389102,0.12,41899.0,41898.0,4.50387742]
[1642645389300,0.1062124,41899.0,41898.0,2.77719899]
[1642645389703,0.1062124,41899.0,41898.0,2.33345313]
[1642645389901,0.1062124,41899.0,41898.0,2.31545313]
[1642645390301,0.1062124,41899.0,41898.0,2.81545313]
[1642645390505,0.1062124,41899.0,41898.0,2.58855313]
[1642645391752,0.1062124,41899.0,41898.0,2.08855313]
[1642645391955,0.1062124,41899.0,41898.0,2.28855313]
[1642645392355,0.1062124,41899.0,41898.0,2.26755313]
[1642645392554,0.0032,41902.0,41899.0,1.385729]
[1642645392555,0.00110023,41901.0,41899.0,1.385729]
[1642645392755,0.00110023,41901.0,41900.0,3.14594939]
[1642645392953,0.0013409,41901.0,41900.0,3.24594939]
[1642645393153,0.0013409,41901.0,41900.0,3.34594939]
[1642645393654,0.0013409,41901.0,41900.0,3.35787939]
[1642645393655,0.00024067,41901.0,41900.0,3.35787939]
[1642645394652,0.00024067,41901.0,41900.0,3.37987939]
[1642645394857,0.74884067,41910.0,41902.0,0.04175319]
[1642645395054,0.74884067,41910.0,41904.0,1.391296]
[1642645395306,8.595e-05,41906.0,41904.0,1.331648]
[1642645395504,8.595e-05,41906.0,41904.0,1.531648]
[1642645395705,6.876e-05,41905.0,41904.0,1.481648]
[1642645395904,6.876e-05,41905.0,41904.0,1.48517344]
[1642645396207,6.876e-05,41905.0,41904.0,0.059644]
[1642645396408,6.876e-05,41905.0,41901.0,0.05]
[1642645396604,6.876e-05,41905.0,41904.0,0.019]
[1642645397005,0.05972876,41905.0,41904.0,0.019]
[1642645397409,6.876e-05,41905.0,41904.0,0.019]
[1642645398307,6.876e-05,41905.0,41899.0,0.63384886]
[1642645398505,6.876e-05,41905.0,41904.0,0.066]
[1642645399750,6.876e-05,41905.0,41902.0,0.169311]
[1642645400153,6.876e-05,41905.0,41899.0,0.4186372]
[1642645400450,6.876e-05,41905.0,41899.0,0.5186372]
[1642645400750,6.876e-05,41905.0,41902.0,0.064]
[1642645400951,0.00110028,41904.0,41902.0,0.064]
[1642645401750,0.00110028,41904.0,41901.0,0.05]
[1642645401951,6.876e-05,41905.0,41901.0,0.05]
[1642645402152,0.06082905,41905.0,41901.0,0.05]
[1642645402556,0.00116905,41905.0,41901.0,0.071]
[1642645403201,6.876e-05,41905.0,41901.0,0.071]
[1642645403501,0.00116905,41905.0,41901.0,0.071]
[1642645403901,0.00116905,41905.0,41901.0,0.05]
[1642645404303,6.876e-05,41905.0,41901.0,0.059656]
[1642645404502,0.00116905,41905.0,41901.0,0.080656]
[1642645405302,0.00116905,41905.0,41901.0,0.130656]
[1642645405504,6.876e-05,41905.0,41901.0,0.130656]
[1642645405702,0.00116905,41905.0,41901.0,0.130656]
[1642645405903,0.00116905,41905.0,41901.0,0.109656]
[1642645406202,0.00116905,41905.0,41901.0,0.059656]
[1642645406448,0.00116905,41905.0,41902.0,0.059655]
[1642645406651,0.00116905,41905.0,41902.0,0.119309]
[1642645406849,6.876e-05,41905.0,41902.0,0.119309]
[1642645407050,0.00116905,41905.0,41902.0,0.119309]
[1642645408054,6.876e-05,41905.0,41902.0,0.119309]
[1642645408652,6.876e-05,41905.0,41903.0,0.059654]
[1642645409652,6.876e-05,41905.0,41902.0,0.143654]
[1642645409653,6.876e-05,41905.0,41902.0,0.084]
[1642645409852,6.876e-05,41905.0,41902.0,0.05]
[1642645410052,6.876e-05,41905.0,41901.0,0.159656]
[1642645410700,0.05972776,41905.0,41901.0,0.185656]
[1642645411000,0.05834776,41905.0,41901.0,0.126]
[1642645411798,0.05944805,41905.0,41901.0,0.05]
[1642645412000,0.05944805,41905.0,41899.0,0.4686372]
[1642645412600,0.05944805,41905.0,41899.0,0.4946372]
[1642645412804,0.05834776,41905.0,41899.0,0.4946372]
[1642645413001,0.00110028,41904.0,41899.0,0.4946372]
[1642645413400,0.06076328,41904.0,41899.0,0.4946372]
[1642645413801,0.06076328,41904.0,41899.0,0.4686372]
[1642645414059,0.059663,41904.0,41899.0,0.4686372]
[1642645414259,0.06076327,41904.0,41899.0,0.4686372]
[1642645414762,0.06076327,41904.0,41899.0,0.4906372]
[1642645414959,0.06076327,41904.0,41899.0,0.5406372]
[1642645415162,0.059663,41904.0,41899.0,0.5406372]
[1642645415362,0.06076327,41904.0,41899.0,0.5406372]
[1642645415561,0.23406375,41903.0,41899.0,0.3406372]
[1642645415762,0.059667,41902.0,41899.0,0.3406372]
[1642645415961,0.059667,41902.0,41899.0,0.3186372]
[1642645416561,0.059667,41902.0,41899.0,0.4006372]
[1642645417064,0.39895853,41902.0,41899.0,0.4006372]
[1642645417265,0.299904,41901.0,41899.0,0.4006372]
[1642645417703,0.059671,41901.0,41899.0,0.4006372]
[1642645417907,0.059671,41901.0,41899.0,0.3186372]
[1642645418303,0.17901304,41901.0,41899.0,0.3186372]
[1642645418503,0.240233,41900.0,41899.0,0.3186372]
[1642645418704,0.17901304,41901.0,41899.0,0.3306372]
[1642645419204,0.23868804,41901.0,41899.0,0.3306372]
[1642645419402,0.240233,41900.0,41899.0,0.3306372]
[1642645419806,0.240233,41900.0,41899.0,0.3186372]
[1642645420604,0.250233,41900.0,41899.0,0.3286372]
[1642645421654,0.298133,41900.0,41899.0,0.3286372]
[1642645421951,0.288133,41900.0,41899.0,0.3186372]
[1642645422748,0.295133,41900.0,41899.0,0.3506372]
[1642645423956,0.288133,41900.0,41899.0,0.3186372]
[1642645424554,0.295133,41900.0,41899.0,0.3536372]
[1642645425510,0.295133,41900.0,41899.0,0.34142947]
[1642645425511,0.57139386,41900.0,41899.0,0.34142947]
[1642645425707,0.57139386,41900.0,41887.0,0.00030941]
[1642645425708,0.33651692,41888.0,41887.0,0.00030941]
[1642645426208,0.0479,41889.0,41887.0,0.00030941]
[1642645426606,0.0479,41889.0,41888.0,0.00022348]
[1642645427508,0.288133,41889.0,41888.0,0.00022348]
[1642645428607,0.0509,41889.0,41888.0,0.00022348]
[1642645429959,0.0479,41889.0,41888.0,0.00022348]
[1642645430760,0.0509,41889.0,41888.0,0.00022348]
[1642645431959,0.0479,41889.0,41888.0,0.00022348]
[1642645432560,2.39394946,41890.0,41888.0,0.00022348]
[1642645432798,2.39394946,41890.0,41889.0,0.059676]
[1642645433003,2.39394946,41890.0,41888.0,0.00022348]
[1642645433199,2.39394946,41890.0,41889.0,0.00020629]
[1642645437560,0.00110006,41893.0,41889.0,0.00020629]
[1642645437958,0.3603,41894.0,41889.0,0.00020629]
[1642645438158,0.00110012,41893.0,41889.0,0.00020629]
[1642645438761,0.00110012,41893.0,41890.0,0.059673]
[1642645439159,0.0479,41894.0,41891.0,0.3859009]
[1642645439361,0.04900013,41894.0,41891.0,0.3859009]
[1642645439559,0.04900013,41894.0,41892.0,0.00015471]
[1642645440208,2.12529403,41893.0,41890.0,0.0598601]
[1642645440604,2.12529403,41893.0,41891.0,0.0001719]
[1642645440810,2.12529403,41893.0,41891.0,0.0598449]
[1642645441007,0.018,41894.0,41891.0,0.059673]
[1642645441209,0.018,41894.0,41892.0,0.44555071]
[1642645441609,0.018,41894.0,41893.0,0.00013752]
[1642645441809,0.00110015,41895.0,41893.0,0.76449905]
[1642645442208,0.00110015,41895.0,41894.0,0.00012033]
[1642645442409,0.00110015,41895.0,41894.0,0.38584933]
[1642645442811,0.059667,41901.0,41894.0,0.38584933]
[1642645443014,0.00110017,41897.0,41894.0,0.00012033]
[1642645443211,0.00110017,41897.0,41895.0,0.00010314]
[1642645443415,0.00110017,41897.0,41895.0,0.119331]
[1642645443615,0.00110017,41897.0,41895.0,0.169331]
[1642645443816,0.00110017,41897.0,41896.0,0.66984903]
[1642645444075,0.56736876,41905.0,41896.0,0.66984903]
[1642645444076,0.56736876,41905.0,41897.0,0.119317]
[1642645444270,0.56736876,41905.0,41897.0,0.238635]
[1642645444271,0.00110019,41898.0,41897.0,0.238635]
[1642645444471,0.00110019,41898.0,41897.0,0.624364]
[1642645444672,0.00110019,41898.0,41897.0,0.62443276]
[1642645445171,0.82979428,41905.0,41897.0,0.62443276]
[1642645445374,2.49310905,41898.0,41897.0,0.23870376]
[1642645446172,2.49310905,41898.0,41897.0,6.876e-05]
[1642645446673,2.49310905,41898.0,41896.0,8.595e-05]
[1642645447073,2.49310905,41898.0,41896.0,0.10151274]
[1642645447274,0.00110021,41900.0,41897.0,0.32590988]
[1642645447474,0.00110021,41900.0,41898.0,0.385729]
[1642645447710,0.56736876,41905.0,41898.0,0.535729]
[1642645447912,0.00110021,41899.0,41898.0,0.15]
[1642645448110,0.00110021,41899.0,41898.0,0.485729]
[1642645448312,0.00110021,41899.0,41898.0,0.77065469]
[1642645448814,6.876e-05,41905.0,41899.0,0.059657]
[1642645449015,6.876e-05,41905.0,41901.0,0.059657]
[1642645449213,2.4824637,41903.0,41901.0,0.059657]
[1642645449612,2.48239194,41903.0,41901.0,0.059657]
[1642645450415,0.00110028,41904.0,41902.0,0.36193]
[1642645450616,0.00110028,41904.0,41903.0,0.445378]
[1642645451013,0.00110028,41904.0,41903.0,0.545378]
[1642645451214,6.876e-05,41905.0,41903.0,0.445378]
[1642645451474,6.876e-05,41905.0,41903.0,0.385729]
[1642645451674,6.876e-05,41905.0,41902.0,0.059656]
[1642645451872,6.876e-05,41905.0,41903.0,0.059656]
[1642645452472,6.876e-05,41905.0,41901.0,0.05]
[1642645452672,6.876e-05,41905.0,41903.0,0.015]
[1642645452673,0.05972976,41905.0,41903.0,0.015]
[1642645453272,0.05972976,41905.0,41904.0,0.00029573]
[1642645454475,6.876e-05,41905.0,41904.0,0.00029573]
[1642645454675,6.876e-05,41905.0,41904.0,0.01429573]
[1642645456017,6.876e-05,41905.0,41904.0,0.00029573]
[1642645456612,6.876e-05,41905.0,41904.0,0.01329573]
[1642645457414,0.24030176,41905.0,41904.0,0.01329573]
[1642645458014,0.24030176,41905.0,41904.0,0.00029573]
[1642645458416,0.29996676,41905.0,41899.0,0.06117759]
[1642645458618,0.05973376,41905.0,41904.0,0.014]
[1642645459756,6.876e-05,41905.0,41904.0,0.014]
[1642645459956,6.876e-05,41905.0,41899.0,0.00151459]
[1642645460355,6.876e-05,41905.0,41901.0,0.059659]
[1642645460956,0.00116905,41905.0,41901.0,0.119319]
[1642645461156,0.00116905,41905.0,41901.0,0.05966]
[1642645461357,0.00116905,41905.0,41902.0,0.29204586]
[1642645461556,0.00116905,41905.0,41902.0,0.35170386]
[1642645462061,6.876e-05,41905.0,41902.0,0.35170386]
[1642645462457,6.876e-05,41905.0,41903.0,0.05965]
[1642645463304,6.876e-05,41905.0,41904.0,0.00029573]
[1642645464306,6.876e-05,41905.0,41904.0,0.28222926]
[1642645464706,6.876e-05,41905.0,41904.0,0.29622926]
[1642645465404,1.51703753,41906.0,41905.0,0.059652]
[1642645465405,1.5168367,41906.0,41905.0,0.059652]
[1642645466654,1.5168367,41906.0,41905.0,0.071652]
[1642645466862,1.5168367,41906.0,41905.0,0.012]
[1642645468057,1.5168367,41906.0,41904.0,0.00029573]
[1642645468457,1.5168367,41906.0,41905.0,0.00023356]
[1642645470710,1.5168367,41906.0,41905.0,0.01123356]
[1642645471808,1.51675364,41906.0,41905.0,0.01123356]
[1642645472609,1.51675364,41906.0,41905.0,0.00023356]
[1642645472809,1.51675364,41906.0,41905.0,0.01123356]
[1642645473210,1.51675364,41906.0,41905.0,0.01148099]
[1642645474058,1.51675364,41906.0,41905.0,0.00048099]
[1642645474759,1.51675364,41906.0,41905.0,0.01148099]
[1642645476061,1.51675364,41906.0,41905.0,0.00048099]
[1642645476862,1.51675364,41906.0,41905.0,0.01448099]
[1642645477907,1.51675364,41906.0,41905.0,0.00048099]
[1642645478710,1.51675364,41906.0,41905.0,0.01448099]